fUSD/lending_fUSD_20240606
["ID","MTS","AMOUNT","RATE_DAILY","PERIOD"]
[328662185,1717683056911,-500.0,0.00028219,4]
[328662186,1717683056921,-500.0,0.00028219,4]
[328662187,1717683056930,-500.0,0.00028219,4]
[328662188,1717683056938,-946.29,0.00028219,4]
[328662189,1717683056948,-577.79,0.00028219,4]
[328662190,1717683056958,-8775.88,0.00028219,4]
[328662191,1717683056967,-500.0,0.00028219,4]
[328662192,1717683056976,-628.87,0.00028219,4]
[328662193,1717683056985,-500.0,0.00028219,4]
[328662194,1717683056995,-233.83842643,0.00028219,4]
[328662195,1717683057004,-763.61,0.00028219,4]
[328662196,1717683057013,-500.0,0.00028219,4]
[328662197,1717683057022,-836.96,0.00028219,4]
[328662198,1717683057032,-681.05,0.00028219,4]
[328662199,1717683057041,-500.0,0.00028219,4]
[328662200,1717683057051,-830.47,0.00028219,4]
[328662201,1717683057061,-500.0,0.00028219,4]
[328662202,1717683057071,-500.0,0.00028219,4]
[328662203,1717683057081,-500.0,0.00028219,4]
[328662204,1717683057090,-500.0,0.00028219,4]
[328662205,1717683057099,-500.0,0.00028219,4]
[328662206,1717683057108,-500.0,0.00028219,4]
[328662207,1717683057118,-585.26,0.00028219,4]
[328662208,1717683057127,-500.0,0.00028219,4]
[328662209,1717683057136,-1004.52,0.00028219,4]
[328662210,1717683057145,-338.98991241,0.00028219,4]
[328662211,1717683057155,-500.0,0.00028219,4]
[328662212,1717683057164,-1073.71,0.00028219,4]
[328662213,1717683057174,-500.0,0.00028219,4]
[328662214,1717683057183,-585.91,0.00028219,4]
[328662215,1717683057193,-596.18,0.00028219,4]
[328662216,1717683057202,-543.99,0.00028219,4]
[328662217,1717683057211,-2956.34,0.00028219,4]
[328662218,1717683057221,-1270.51,0.00028219,4]
[328662219,1717683057230,-5274.7,0.00028219,4]
[328662220,1717683057239,-532.29,0.00028219,4]
[328662221,1717683057248,-610.77,0.00028219,4]
[328662222,1717683057258,-500.0,0.00028219,4]
[328662223,1717683057267,-1393.93,0.00028219,4]
[328662224,1717683057276,-888.14,0.00028219,4]
[328662225,1717683057285,-3699.29,0.00028219,4]
[328662226,1717683057295,-592.93519339,0.00028219,4]
[328662227,1717683057304,-500.0,0.00028219,4]
[328662228,1717683057313,-610.91,0.00028219,4]
[328662229,1717683057323,-500.0,0.00028219,4]
[328662230,1717683057332,-2558.82,0.00028219,4]
[328662231,1717683057341,-500.0,0.00028219,4]
[328662232,1717683057351,-500.0,0.00028219,4]
[328662233,1717683057359,-2815.93,0.00028219,4]
[328662234,1717683057369,-634.77,0.00028219,4]
[328662235,1717683057378,-500.0,0.00028219,4]
[328662236,1717683057387,-742.62,0.00028219,4]
[328662237,1717683057396,-513.38,0.00028219,4]
[328662238,1717683057405,-500.0,0.00028219,4]
[328662239,1717683057415,-500.0,0.00028219,4]
[328662240,1717683057429,-500.0,0.00028219,4]
[328662241,1717683057439,-500.0,0.00028219,4]
[328662242,1717683057448,-500.0,0.00028219,4]
[328662243,1717683057458,-500.0,0.00028219,4]
[328662244,1717683057469,-500.0,0.00028219,4]
[328662245,1717683057478,-500.0,0.00028219,4]
[328662246,1717683057487,-1456.81,0.00028219,4]
[328662247,1717683057496,-500.0,0.00028219,4]
[328662248,1717683057506,-603.48,0.00028219,4]
[328662249,1717683057515,-506.53,0.00028219,4]
[328662250,1717683057525,-669.58,0.00028219,4]
[328662251,1717683057534,-500.0,0.00028219,4]
[328662252,1717683057543,-500.0,0.00028219,4]
[328662253,1717683057552,-500.0,0.00028219,4]
[328662254,1717683057561,-500.0,0.00028219,4]
[328662255,1717683057571,-500.0,0.00028219,4]
[328662256,1717683057582,-2393.95,0.00028219,4]
[328662257,1717683057591,-1406.7,0.00028219,4]
[328662258,1717683057601,-500.0,0.00028219,4]
[328662259,1717683057610,-4438.97,0.00028219,4]
[328662260,1717683057619,-500.0,0.00028219,4]
[328662261,1717683057628,-500.0,0.00028219,4]
[328662262,1717683057638,-500.0,0.00028219,4]
[328662263,1717683057647,-500.0,0.00028219,4]
[328662264,1717683057656,-500.0,0.00028219,4]
[328662265,1717683057666,-727.93,0.00028219,4]
[328662266,1717683057675,-1151.3,0.00028219,4]
[328662267,1717683057685,-500.0,0.00028219,4]
[328662268,1717683057695,-500.0,0.00028219,4]
[328662269,1717683057704,-1673.74,0.00028219,4]
[328662270,1717683057714,-2730.1,0.00028219,4]
[328662271,1717683057723,-500.0,0.00028219,4]
[328662272,1717683057732,-500.0,0.00028219,4]
[328662273,1717683057742,-500.0,0.00028219,4]
[328662274,1717683057752,-500.0,0.00028219,4]
[328662275,1717683057761,-1555.57,0.00028219,4]
[328662276,1717683057771,-500.0,0.00028219,4]
[328662277,1717683057780,-500.0,0.00028219,4]
[328662278,1717683057789,-2644.53,0.00028219,4]
[328662279,1717683057798,-500.0,0.00028219,4]
[328662280,1717683057808,-500.0,0.00028219,4]
[328662281,1717683057817,-648.81,0.00028219,4]
[328662282,1717683057827,-500.0,0.00028219,4]
[328662283,1717683057836,-167.22,0.00028219,4]
[328662284,1717683057846,-500.0,0.00028219,4]
[328662285,1717683057855,-500.0,0.00028219,4]
[328662286,1717683057864,-500.0,0.00028219,4]
[328662287,1717683057874,-500.0,0.00028219,4]
[328662288,1717683057883,-687.06,0.00028219,4]
[328662289,1717683057893,-500.0,0.00028219,4]
[328662290,1717683057903,-536.61,0.00028219,4]
[328662291,1717683057912,-3792.6,0.00028219,4]
[328662292,1717683057921,-652.38,0.00028219,4]
[328662293,1717683057931,-500.0,0.00028219,4]
[328662294,1717683057941,-500.0,0.00028219,4]
[328662295,1717683057951,-872.14,0.00028219,4]
[328662296,1717683057960,-500.0,0.00028219,4]
[328662297,1717683057969,-1060.43,0.00028219,4]
[328662298,1717683057978,-1059.91,0.00028219,4]
[328662299,1717683057988,-1562.46,0.00028219,4]
[328662300,1717683057997,-500.0,0.00028219,4]
[328662301,1717683058006,-523.22,0.00028219,4]
[328662302,1717683058017,-500.0,0.00028219,4]
[328662303,1717683058026,-500.0,0.00028219,4]
[328662304,1717683058035,-500.0,0.00028219,4]
[328662305,1717683058045,-600.20594828,0.00028219,4]
[328662306,1717683058054,-2689.76,0.00028219,4]
[328662307,1717683058064,-596.44,0.00028219,4]
[328662308,1717683058073,-500.0,0.00028219,4]
[328662309,1717683058083,-500.0,0.00028219,4]
[328662310,1717683058092,-500.0,0.00028219,4]
[328662311,1717683058107,-500.0,0.00028219,4]
[328662312,1717683058116,-500.0,0.00028219,4]
[328662313,1717683058126,-551.96,0.00028219,4]
[328662314,1717683058135,-3998.11,0.00028219,4]
[328662315,1717683058144,-688.76,0.00028219,4]
[328662316,1717683058153,-500.0,0.00028219,4]
[328662317,1717683058163,-1107.27,0.00028219,4]
[328662318,1717683058172,-500.0,0.00028219,4]
[328662319,1717683058181,-500.0,0.00028219,4]
[328662320,1717683058191,-150.1624568,0.00028219,4]
[328662321,1717683058200,-500.0,0.00028219,4]
[328662322,1717683058209,-1366.56,0.00028219,4]
[328662323,1717683058219,-500.0,0.00028219,4]
[328662324,1717683058228,-500.0,0.00028219,4]
[328662325,1717683058237,-500.0,0.00028219,4]
[328662326,1717683058247,-1249.74,0.00028219,4]
[328662327,1717683058256,-500.0,0.00028219,4]
[328662328,1717683058265,-500.0,0.00028219,4]
[328662329,1717683058274,-3019.69,0.00028219,4]
[328662330,1717683058284,-683.79,0.00028219,4]
[328662331,1717683058293,-500.0,0.00028219,4]
[328662332,1717683058302,-3318.43,0.00028219,4]
[328662333,1717683058312,-500.0,0.00028219,4]
[328662334,1717683058321,-500.0,0.00028219,4]
[328662335,1717683058332,-500.0,0.00028219,4]
[328662336,1717683058341,-500.0,0.00028219,4]
[328662337,1717683058351,-500.0,0.00028219,4]
[328662338,1717683058361,-500.0,0.00028219,4]
[328662339,1717683058371,-1657.41,0.00028219,4]
[328662340,1717683058380,-500.0,0.00028219,4]
[328662341,1717683058389,-500.0,0.00028219,4]
[328662342,1717683058399,-764.19,0.00028219,4]
[328662343,1717683058408,-2543.25,0.00028219,4]
[328662344,1717683058419,-500.0,0.00028219,4]
[328662345,1717683058434,-500.0,0.00028219,4]
[328662346,1717683058444,-500.0,0.00028219,4]
[328662347,1717683058453,-500.0,0.00028219,4]
[328662348,1717683058463,-747.97,0.00028219,4]
[328662349,1717683058472,-507.39,0.00028219,4]
[328662350,1717683058482,-2288.29,0.00028219,4]
[328662351,1717683058491,-500.0,0.00028219,4]
[328662352,1717683058502,-500.0,0.00028219,4]
[328662353,1717683058512,-634.43664926,0.00028219,4]
[328662354,1717683058521,-580.42,0.00028219,4]
[328662355,1717683058530,-1070.47,0.00028219,4]
[328662356,1717683058539,-231.87998787,0.00028219,4]
[328662357,1717683058549,-560.19,0.00028219,4]
[328662358,1717683058558,-500.0,0.00028219,4]
[328662359,1717683058567,-3164.12,0.00028219,4]
[328662360,1717683058577,-500.0,0.00028219,4]
[328662361,1717683058587,-500.0,0.00028219,4]
[328662362,1717683058596,-751.82,0.00028219,4]
[328662363,1717683058605,-817.16,0.00028219,4]
[328662364,1717683058615,-932.85,0.00028219,4]
[328662365,1717683058624,-500.0,0.00028219,4]
[328662366,1717683058634,-577.62,0.00028219,4]
[328662367,1717683058643,-500.0,0.00028219,4]
[328662368,1717683058652,-556.39,0.00028219,4]
[328662369,1717683058661,-500.0,0.00028219,4]
[328662370,1717683058671,-502.03,0.00028219,4]
[328662371,1717683058680,-326.6289971,0.00028219,4]
[328662372,1717683058690,-1137.15,0.00028219,4]
[328662373,1717683058701,-1347.08,0.00028219,4]
[328662374,1717683058710,-605.78065081,0.00028219,4]
[328662375,1717683058720,-500.0,0.00028219,4]
[328662376,1717683058729,-500.0,0.00028219,4]
[328662377,1717683058738,-550.28,0.00028219,4]
[328662378,1717683058748,-575.32,0.00028219,4]
[328662379,1717683058757,-506.62,0.00028219,4]
[328662380,1717683058766,-2314.45,0.00028219,4]
[328662381,1717683058775,-500.0,0.00028219,4]
[328662382,1717683058784,-500.0,0.00028219,4]
[328662383,1717683058793,-500.0,0.00028219,4]
[328662384,1717683058803,-618.6,0.00028219,4]
[328662385,1717683058812,-500.0,0.00028219,4]
[328662386,1717683058821,-675.98,0.00028219,4]
[328662387,1717683058831,-1000.0,0.00028311,14]
[328662388,1717683058841,-150.0,0.00028329,2]
[328662389,1717683058850,-378.0,0.00028379,5]
[328662390,1717683058860,-203.0,0.0002842,2]
[328662391,1717683058870,-213.0,0.0002842,2]
[328662392,1717683058879,-500.0,0.00028436,2]
[328662393,1717683058888,-1000.0,0.00028441,14]
[328662394,1717683058898,-3511.40916452,0.00028453,2]
[328662395,1717683058908,-189.0,0.00028463,15]
[328662396,1717683058917,-1090.0,0.00028463,15]
[328662397,1717683058927,-189.0,0.00028473,15]
[328662398,1717683058936,-1090.0,0.00028473,15]
[328662399,1717683058945,-150.0,0.00028474,2]
[328662400,1717683058954,-237.36098672,0.00028479,2]
[328662401,1717683058964,-1090.0,0.00028483,15]
[328662402,1717683058973,-189.0,0.00028483,15]
[328662403,1717683058983,-2578.56252475,0.0002849,2]
[328662404,1717683058992,-60062.69102065,0.00028493,13]
[328662405,1717683059002,-500.0,0.00028493,4]
[328662406,1717683059011,-222.27727945,0.00028493,4]
[328662407,1717683059020,-186.38298657,0.00028493,4]
[328662408,1717683059030,-500.0,0.00028493,4]
[328662409,1717683059039,-500.0,0.00028493,4]
[328662410,1717683059049,-500.0,0.00028493,4]
[328662411,1717683059058,-500.0,0.00028493,4]
[328662412,1717683059068,-284.01563728,0.00028493,4]
[328662413,1717683059077,-500.0,0.00028493,4]
[328662414,1717683059087,-500.0,0.00028493,4]
[328662415,1717683059096,-461.22398146,0.00028493,4]
[328662416,1717683059105,-638.59,0.00028493,4]
[328662417,1717683059114,-500.0,0.00028493,4]
[328662418,1717683059123,-500.0,0.00028493,4]
[328662419,1717683059133,-184.35276989,0.00028493,4]
[328662420,1717683059142,-500.0,0.00028493,4]
[328662421,1717683059151,-500.0,0.00028493,4]
[328662422,1717683059160,-500.0,0.00028493,4]
[328662423,1717683059169,-500.0,0.00028493,4]
[328662424,1717683059179,-1101.45,0.00028493,4]
[328662425,1717683059188,-500.0,0.00028493,4]
[328662426,1717683059198,-500.0,0.00028493,4]
[328662427,1717683059208,-500.0,0.00028493,4]
[328662428,1717683059217,-500.0,0.00028493,4]
[328662429,1717683059227,-500.0,0.00028493,4]
[328662430,1717683059236,-500.0,0.00028493,4]
[328662431,1717683059245,-500.0,0.00028493,4]
[328662432,1717683059255,-269.12,0.00028493,4]
[328662433,1717683059264,-500.0,0.00028493,4]
[328662434,1717683059274,-500.0,0.00028493,4]
[328662435,1717683059283,-500.0,0.00028493,4]
[328662436,1717683059292,-500.0,0.00028493,4]
[328662437,1717683059302,-500.0,0.00028493,4]
[328662438,1717683059311,-500.0,0.00028493,4]
[328662439,1717683059320,-500.0,0.00028493,4]
[328662440,1717683059330,-500.0,0.00028493,4]
[328662441,1717683059339,-500.0,0.00028493,4]
[328662442,1717683059348,-500.0,0.00028493,4]
[328662443,1717683059357,-500.0,0.00028493,4]
[328662444,1717683059366,-500.0,0.00028493,4]
[328662445,1717683059376,-314.29293208,0.00028493,4]
[328662446,1717683059385,-500.0,0.00028493,4]
[328662447,1717683059394,-500.0,0.00028493,4]
[328662448,1717683059403,-500.0,0.00028493,4]
[328662449,1717683059412,-500.0,0.00028493,4]
[328662450,1717683059425,-726.27,0.00028493,4]
[328662451,1717683059434,-632.46,0.00028493,4]
[328662452,1717683059443,-500.0,0.00028493,4]
[328662453,1717683059453,-500.0,0.00028493,4]
[328662454,1717683059463,-500.0,0.00028493,2]
[328662455,1717683059472,-500.0,0.00028493,4]
[328662456,1717683059482,-500.0,0.00028493,4]
[328662457,1717683059491,-454.63221339,0.00028493,4]
[328662458,1717683059502,-500.0,0.00028493,4]
[328662459,1717683059511,-500.0,0.00028493,4]
[328662460,1717683059520,-500.0,0.00028493,4]
[328662461,1717683059529,-987.99,0.00028493,4]
[328662462,1717683059538,-1077.57,0.00028493,4]
[328662463,1717683059548,-500.0,0.00028493,4]
[328662464,1717683059557,-1145.5,0.00028493,4]
[328662465,1717683059566,-500.0,0.00028493,2]
[328662466,1717683059576,-500.0,0.00028493,4]
[328662467,1717683059585,-500.0,0.00028493,4]
[328662468,1717683059594,-500.0,0.00028493,4]
[328662469,1717683059604,-500.0,0.00028493,4]
[328662470,1717683059613,-500.0,0.00028493,4]
[328662471,1717683059622,-919.25,0.00028493,4]
[328662472,1717683059631,-500.0,0.00028493,4]
[328662473,1717683059640,-500.0,0.00028493,4]
[328662474,1717683059649,-500.0,0.00028493,4]
[328662475,1717683059658,-600.92472713,0.00028493,4]
[328662476,1717683059668,-500.0,0.00028493,4]
[328662477,1717683059677,-500.0,0.00028493,4]
[328662478,1717683059686,-500.0,0.00028493,4]
[328662479,1717683059695,-500.0,0.00028493,4]
[328662480,1717683059704,-802.38,0.00028493,4]
[328662481,1717683059713,-504.8,0.00028493,4]
[328662482,1717683059723,-797.65,0.00028493,4]
[328662483,1717683059732,-500.0,0.00028493,4]
[328662484,1717683059741,-500.0,0.00028493,4]
[328662485,1717683059750,-500.0,0.00028493,4]
[328662486,1717683059759,-500.0,0.00028493,4]
[328662487,1717683059768,-500.0,0.00028493,4]
[328662488,1717683059777,-547.0,0.00028493,4]
[328662489,1717683059786,-500.0,0.00028493,4]
[328662490,1717683059796,-500.0,0.00028493,4]
[328662491,1717683059804,-577.35,0.00028493,4]
[328662492,1717683059814,-838.79,0.00028493,4]
[328662493,1717683059822,-500.0,0.00028493,4]
[328662494,1717683059832,-800.02,0.00028493,4]
[328662495,1717683059841,-407.94253605,0.00028493,4]
[328662496,1717683059851,-500.0,0.00028493,4]
[328662497,1717683059861,-974.14,0.00028493,4]
[328662498,1717683059871,-500.0,0.00028493,4]
[328662499,1717683059880,-500.0,0.00028493,4]
[328662500,1717683059890,-500.0,0.00028493,4]
[328662501,1717683059899,-500.0,0.00028493,4]
[328662502,1717683059909,-521.06,0.00028493,4]
[328662503,1717683059918,-500.0,0.00028493,4]
[328662504,1717683059927,-500.0,0.00028493,4]
[328662505,1717683059936,-500.0,0.00028493,4]
[328662506,1717683059945,-500.0,0.00028493,4]
[328662507,1717683059955,-500.0,0.00028493,4]
[328662508,1717683059964,-500.0,0.00028493,4]
[328662509,1717683059973,-500.0,0.00028493,4]
[328662510,1717683059982,-383.8144695,0.00028493,4]
[328662511,1717683059991,-500.0,0.00028493,4]
[328662512,1717683060000,-500.0,0.00028493,4]
[328662513,1717683060009,-666.21,0.00028493,2]
[328662514,1717683060018,-500.0,0.00028493,4]
[328662515,1717683060028,-500.0,0.00028493,4]
[328662516,1717683060037,-500.0,0.00028493,4]
[328662517,1717683060046,-500.0,0.00028493,4]
[328662518,1717683060055,-500.0,0.00028493,4]
[328662519,1717683060064,-533.25,0.00028493,4]
[328662520,1717683060074,-2202.3,0.00028493,4]
[328662521,1717683060083,-211.40460046,0.00028493,4]
[328662522,1717683060092,-500.0,0.00028493,4]
[328662523,1717683060102,-500.0,0.00028493,4]
[328662524,1717683060111,-500.0,0.00028493,4]
[328662525,1717683060120,-657.59,0.00028493,4]
[328662526,1717683060130,-714.91,0.00028493,4]
[328662527,1717683060139,-500.0,0.00028493,4]
[328662528,1717683060148,-663.54,0.00028493,4]
[328662529,1717683060157,-266.93319864,0.00028493,4]
[328662530,1717683060166,-500.0,0.00028493,4]
[328662531,1717683060175,-500.0,0.00028493,4]
[328662532,1717683060185,-814.59,0.00028493,4]
[328662533,1717683060194,-151.0,0.00028493,7]
[328662534,1717683060203,-167.17077995,0.00028493,4]
[328662535,1717683060212,-500.0,0.00028493,4]
[328662536,1717683060221,-500.0,0.00028493,4]
[328662537,1717683060231,-566.62,0.00028493,4]
[328662538,1717683060240,-500.0,0.00028493,4]
[328662539,1717683060249,-500.0,0.00028493,4]
[328662540,1717683060259,-500.0,0.00028493,4]
[328662541,1717683060268,-500.0,0.00028493,4]
[328662542,1717683060277,-500.0,0.00028493,4]
[328662543,1717683060287,-351.202899,0.00028493,4]
[328662544,1717683060296,-500.0,0.00028493,4]
[328662545,1717683060305,-500.0,0.00028493,4]
[328662546,1717683060315,-500.0,0.00028493,4]
[328662547,1717683060324,-500.0,0.00028493,4]
[328662548,1717683060336,-500.0,0.00028493,4]
[328662549,1717683060345,-500.0,0.00028493,4]
[328662550,1717683060354,-500.0,0.00028493,4]
[328662551,1717683060363,-500.0,0.00028493,4]
[328662552,1717683060372,-500.0,0.00028493,4]
[328662553,1717683060382,-500.0,0.00028493,4]
[328662554,1717683060392,-500.0,0.00028493,4]
[328662555,1717683060402,-238.10532438,0.00028493,4]
[328662556,1717683060411,-500.0,0.00028493,4]
[328662557,1717683060426,-580.99,0.00028493,4]
[328662558,1717683060436,-500.0,0.00028493,4]
[328662559,1717683060445,-500.0,0.00028493,4]
[328662560,1717683060454,-500.0,0.00028493,4]
[328662561,1717683060465,-500.0,0.00028493,4]
[328662562,1717683060474,-500.0,0.00028493,4]
[328662563,1717683060484,-522.8,0.00028493,4]
[328662564,1717683060494,-500.0,0.00028493,4]
[328662565,1717683060506,-500.0,0.00028493,4]
[328662566,1717683060516,-500.0,0.00028493,4]
[328662567,1717683060526,-500.0,0.00028493,4]
[328662568,1717683060536,-500.0,0.00028493,4]
[328662569,1717683060545,-500.0,0.00028493,4]
[328662570,1717683060555,-511.71,0.00028493,4]
[328662571,1717683060565,-500.0,0.00028493,4]
[328662572,1717683060575,-500.0,0.00028493,4]
[328662573,1717683060586,-500.0,0.00028493,4]
[328662574,1717683060596,-586.2,0.00028493,4]
[328662575,1717683060605,-500.0,0.00028493,4]
[328662576,1717683060615,-500.0,0.00028493,4]
[328662577,1717683060624,-500.0,0.00028493,4]
[328662578,1717683060634,-500.0,0.00028493,4]
[328662579,1717683060644,-500.0,0.00028493,4]
[328662580,1717683060654,-500.0,0.00028493,4]
[328662581,1717683060663,-500.0,0.00028493,4]
[328662582,1717683060674,-500.0,0.00028493,4]
[328662583,1717683060683,-560.12367706,0.00028493,4]
[328662584,1717683060692,-500.0,0.00028493,4]
[328662585,1717683060702,-500.0,0.00028493,4]
[328662586,1717683060712,-612.73,0.00028493,4]
[328662587,1717683060722,-500.0,0.00028493,4]
[328662588,1717683060732,-500.0,0.00028493,4]
[328662589,1717683060741,-500.0,0.00028493,4]
[328662590,1717683060750,-538.0,0.00028493,4]
[328662591,1717683060760,-603.74515045,0.00028493,4]
[328662592,1717683060769,-500.0,0.00028493,4]
[328662593,1717683060779,-500.0,0.00028493,4]
[328662594,1717683060788,-500.0,0.00028493,4]
[328662595,1717683060798,-528.0,0.00028493,4]
[328662596,1717683060807,-500.0,0.00028493,4]
[328662597,1717683060817,-500.0,0.00028493,4]
[328662598,1717683060827,-500.0,0.00028493,4]
[328662599,1717683060836,-500.0,0.00028493,4]
[328662600,1717683060846,-500.0,0.00028493,4]
[328662601,1717683060855,-966.61,0.00028493,4]
[328662602,1717683060864,-500.0,0.00028493,4]
[328662603,1717683060874,-500.0,0.00028493,4]
[328662604,1717683060884,-500.0,0.00028493,4]
[328662605,1717683060894,-500.0,0.00028493,4]
[328662606,1717683060904,-528.65103297,0.00028493,4]
[328662607,1717683060914,-500.0,0.00028493,4]
[328662608,1717683060923,-676.29,0.00028493,4]
[328662609,1717683060933,-639.9,0.00028493,4]
[328662610,1717683060943,-500.0,0.00028493,4]
[328662611,1717683060952,-194.34086275,0.00028493,4]
[328662612,1717683060962,-500.0,0.00028493,4]
[328662613,1717683060971,-500.0,0.00028493,4]
[328662614,1717683060981,-500.0,0.00028493,4]
[328662615,1717683060990,-892.2,0.00028493,4]
[328662616,1717683061000,-205.78,0.00028493,4]
[328662617,1717683061009,-1019.57,0.00028493,4]
[328662618,1717683061019,-500.0,0.00028493,4]
[328662619,1717683061029,-508.41,0.00028493,4]
[328662620,1717683061039,-500.0,0.00028493,4]
[328662621,1717683061048,-500.0,0.00028493,4]
[328662622,1717683061058,-545.1,0.00028493,2]
[328662623,1717683061068,-500.0,0.00028493,4]
[328662624,1717683061078,-1335.76,0.00028493,4]
[328662625,1717683061088,-500.0,0.00028493,4]
[328662626,1717683061098,-500.0,0.00028493,4]
[328662627,1717683061108,-500.0,0.00028493,4]
[328662628,1717683061118,-500.0,0.00028493,4]
[328662629,1717683061128,-972.64,0.00028493,4]
[328662630,1717683061138,-500.0,0.00028493,4]
[328662631,1717683061147,-224.52842136,0.00028493,4]
[328662632,1717683061157,-500.0,0.00028493,4]
[328662633,1717683061167,-500.0,0.00028493,4]
[328662634,1717683061177,-500.0,0.00028493,4]
[328662635,1717683061186,-814.1,0.00028493,4]
[328662636,1717683061196,-500.0,0.00028493,4]
[328662637,1717683061206,-500.0,0.00028493,4]
[328662638,1717683061216,-434.77174394,0.00028493,4]
[328662639,1717683061225,-500.0,0.00028493,4]
[328662640,1717683061235,-500.0,0.00028493,4]
[328662641,1717683061244,-500.0,0.00028493,4]
[328662642,1717683061254,-500.0,0.00028493,4]
[328662643,1717683061264,-500.0,0.00028493,4]
[328662644,1717683061273,-500.0,0.00028493,4]
[328662645,1717683061283,-500.0,0.00028493,4]
[328662646,1717683061292,-946.29,0.00028493,4]
[328662647,1717683061302,-577.79,0.00028493,4]
[328662648,1717683061312,-8775.88,0.00028493,4]
[328662649,1717683061321,-500.0,0.00028493,4]
[328662650,1717683061333,-628.87,0.00028493,4]
[328662651,1717683061343,-170.20661005,0.00028493,4]
[328662652,1717683061352,-763.61,0.00028493,4]
[328662653,1717683061362,-500.0,0.00028493,4]
[328662654,1717683061371,-836.96,0.00028493,4]
[328662655,1717683061382,-681.05,0.00028493,4]
[328662656,1717683061391,-500.0,0.00028493,4]
[328662657,1717683061401,-830.47,0.00028493,4]
[328662658,1717683061411,-500.0,0.00028493,4]
[328662659,1717683061421,-500.0,0.00028493,4]
[328662660,1717683061432,-183.12806826,0.00028493,4]
[328662661,1717683061442,-500.0,0.00028493,4]
[328662662,1717683061452,-500.0,0.00028493,4]
[328662663,1717683061462,-500.0,0.00028493,4]
[328662664,1717683061471,-585.26,0.00028493,4]
[328662665,1717683061481,-500.0,0.00028493,4]
[328662666,1717683061491,-1004.52,0.00028493,4]
[328662667,1717683061500,-500.0,0.00028493,4]
[328662668,1717683061512,-1073.71,0.00028493,4]
[328662669,1717683061523,-500.0,0.00028493,4]
[328662670,1717683061532,-585.91,0.00028493,4]
[328662671,1717683061542,-596.18,0.00028493,4]
[328662672,1717683061552,-543.99,0.00028493,4]
[328662673,1717683061561,-2956.34,0.00028493,4]
[328662674,1717683061571,-1270.51,0.00028493,4]
[328662675,1717683061583,-5274.7,0.00028493,4]
[328662676,1717683061592,-532.29,0.00028493,4]
[328662677,1717683061602,-610.77,0.00028493,4]
[328662678,1717683061611,-500.0,0.00028493,4]
[328662679,1717683061620,-1393.93,0.00028493,4]
[328662680,1717683061630,-888.14,0.00028493,4]
[328662681,1717683061639,-3699.29,0.00028493,4]
[328662682,1717683061648,-500.0,0.00028493,4]
[328662683,1717683061658,-610.91,0.00028493,4]
[328662684,1717683061667,-500.0,0.00028493,4]